fUST/lending_fUST_20240501
["ID","MTS","AMOUNT","RATE_DAILY","PERIOD"]
[325181759,1714551082776,-1562.95,0.00071232,120]
[325181760,1714551082785,-500.0,0.00071232,120]
[325181761,1714551082795,-208.55650036,0.00071232,120]
[325181762,1714551082806,-500.0,0.00071232,120]
[325181763,1714551082816,-1256.18,0.00071232,120]
[325181764,1714551082826,-500.0,0.00071232,120]
[325181765,1714551082835,-500.0,0.00071232,120]
[325181766,1714551082843,-500.0,0.00071232,120]
[325181767,1714551082852,-500.0,0.00071232,120]
[325181768,1714551082861,-500.0,0.00071232,120]
[325181769,1714551082871,-1164.34,0.00071232,120]
[325181770,1714551082880,-500.0,0.00071232,120]
[325181771,1714551082890,-500.0,0.00071232,120]
[325181772,1714551082900,-1166.09,0.00071232,120]
[325181773,1714551082909,-500.0,0.00071232,120]
[325181774,1714551082919,-500.0,0.00071232,2]
[325181775,1714551082928,-500.0,0.00071232,120]
[325181776,1714551082939,-500.0,0.00071232,120]
[325181777,1714551082949,-500.0,0.00071232,120]
[325181778,1714551082960,-639.5,0.00071232,120]
[325181779,1714551082969,-501.83533882,0.00071232,120]
[325181780,1714551082978,-500.0,0.00071232,120]
[325181781,1714551082987,-500.0,0.00071232,120]
[325181782,1714551082996,-500.0,0.00071232,120]
[325181783,1714551083005,-500.0,0.00071232,120]
[325181784,1714551083015,-500.0,0.00071232,120]
[325181785,1714551083024,-651.81,0.00071232,120]
[325181786,1714551083034,-500.0,0.00071232,120]
[325181787,1714551083043,-500.0,0.00071232,120]
[325181788,1714551083052,-500.0,0.00071232,120]
[325181789,1714551083062,-181.0972047,0.00071232,120]
[325181790,1714551083071,-600.80702226,0.00071232,120]
[325181791,1714551083080,-500.0,0.00071232,120]
[325181792,1714551083089,-500.0,0.00071232,120]
[325181793,1714551083098,-500.0,0.00071232,120]
[325181794,1714551083107,-500.0,0.00071232,120]
[325181795,1714551083116,-1908.16,0.00071232,120]
[325181796,1714551083126,-500.0,0.00071232,120]
[325181797,1714551083135,-3348.19,0.00071232,2]
[325181798,1714551083145,-500.0,0.00071232,120]
[325181799,1714551083154,-500.0,0.00071232,120]
[325181800,1714551083163,-500.0,0.00071232,120]
[325181801,1714551083172,-236.74894456,0.00071232,120]
[325181802,1714551083181,-500.0,0.00071232,120]
[325181803,1714551083194,-504.81,0.00071232,120]
[325181804,1714551083204,-525.82,0.00071232,120]
[325181805,1714551083213,-500.0,0.00071232,120]
[325181806,1714551083222,-501.03,0.00071232,120]
[325181807,1714551083231,-689.62,0.00071232,120]
[325181808,1714551083240,-500.0,0.00071232,120]
[325181809,1714551083250,-510.5,0.00071232,120]
[325181810,1714551083259,-500.0,0.00071232,120]
[325181811,1714551083268,-593.66,0.00071232,120]
[325181812,1714551083277,-500.0,0.00071232,120]
[325181813,1714551083287,-500.0,0.00071232,120]
[325181814,1714551083296,-500.0,0.00071232,120]
[325181815,1714551083305,-500.0,0.00071232,120]
[325181816,1714551083314,-500.0,0.00071232,120]
[325181817,1714551083324,-500.0,0.00071232,120]
[325181818,1714551083334,-500.0,0.00071232,120]
[325181819,1714551083343,-500.0,0.00071232,120]
[325181820,1714551083351,-500.0,0.00071232,120]
[325181821,1714551083361,-2088.42,0.00071232,120]
[325181822,1714551083370,-598.99,0.00071232,120]
[325181823,1714551083380,-500.0,0.00071232,120]
[325181824,1714551083389,-500.0,0.00071232,120]
[325181825,1714551083399,-692.55,0.00071232,120]
[325181826,1714551083407,-500.0,0.00071232,120]
[325181827,1714551083417,-500.0,0.00071232,120]
[325181828,1714551083426,-500.0,0.00071232,120]
[325181829,1714551083435,-1121.83,0.00071232,120]
[325181830,1714551083447,-1588.77,0.00071232,120]
[325181831,1714551083455,-648.29968913,0.00071232,120]
[325181832,1714551083464,-494.75787689,0.00071232,120]
[325181833,1714551083474,-557.85,0.00071232,120]
[325181834,1714551083484,-1507.86,0.00071232,120]
[325181835,1714551083493,-500.0,0.00071232,120]
[325181836,1714551083503,-500.0,0.00071232,120]
[325181837,1714551083512,-682.62,0.00071232,120]
[325181838,1714551083521,-332.81512152,0.00071232,120]
[325181839,1714551083531,-1785.66,0.00071232,120]
[325181840,1714551083539,-500.0,0.00071232,120]
[325181841,1714551083549,-577.42,0.00071232,120]
[325181842,1714551083558,-251.13959408,0.00071232,120]
[325181843,1714551083567,-500.0,0.00071232,120]
[325181844,1714551083576,-952.28,0.00071232,120]
[325181845,1714551083586,-503.21217433,0.00071232,120]
[325181846,1714551083595,-500.0,0.00071232,120]
[325181847,1714551083604,-500.0,0.00071232,120]
[325181848,1714551083613,-500.0,0.00071232,120]
[325181849,1714551083622,-500.0,0.00071232,120]
[325181850,1714551083632,-500.0,0.00071232,120]
[325181851,1714551083642,-500.0,0.00071232,120]
[325181852,1714551083652,-6250.0,0.00071232,120]
[325181853,1714551083662,-500.0,0.00071232,120]
[325181854,1714551083671,-3743.38,0.00071232,120]
[325181855,1714551083681,-500.0,0.00071232,120]
[325181856,1714551083692,-500.0,0.00071232,120]
[325181857,1714551083702,-500.0,0.00071232,120]
[325181858,1714551083712,-500.0,0.00071232,120]
[325181859,1714551083724,-500.0,0.00071232,120]
[325181860,1714551083734,-500.0,0.00071232,120]
[325181861,1714551083743,-500.0,0.00071232,120]
[325181862,1714551083752,-500.0,0.00071232,120]
[325181863,1714551083761,-468.76851429,0.00071232,120]
[325181864,1714551083770,-403.73487081,0.00071232,120]
[325181865,1714551083780,-1044.56,0.00071232,120]
[325181866,1714551083790,-500.0,0.00071232,120]
[325181867,1714551083800,-502.44148202,0.00071232,120]
[325181868,1714551083810,-1909.75,0.00071232,120]
[325181869,1714551083819,-500.0,0.00071232,120]
[325181870,1714551083828,-500.0,0.00071232,120]
[325181871,1714551083838,-500.0,0.00071232,120]
[325181872,1714551083848,-501.04,0.00071232,120]
[325181873,1714551083858,-500.0,0.00071232,120]
[325181874,1714551083867,-500.0,0.00071232,120]
[325181875,1714551083876,-8117.03,0.00071232,120]
[325181876,1714551083885,-753.05,0.00071232,120]
[325181877,1714551083896,-500.0,0.00071232,120]
[325181878,1714551083906,-500.0,0.00071232,120]
[325181879,1714551083915,-575.31722898,0.00071232,120]
[325181880,1714551083924,-500.0,0.00071232,120]
[325181881,1714551083934,-3650.14,0.00071232,120]
[325181882,1714551083946,-1110.2,0.00071232,120]
[325181883,1714551083956,-500.0,0.00071232,120]
[325181884,1714551083965,-500.0,0.00071232,120]
[325181885,1714551083975,-571.7789984,0.00071232,120]
[325181886,1714551083984,-503.46560064,0.00071232,120]
[325181887,1714551083994,-1002.97,0.00071232,120]
[325181888,1714551084003,-500.0,0.00071232,120]
[325181889,1714551084012,-500.0,0.00071232,120]
[325181890,1714551084021,-4739.82,0.00071232,120]
[325181891,1714551084031,-500.0,0.00071232,120]
[325181892,1714551084040,-500.0,0.00071232,120]
[325181893,1714551084050,-500.0,0.00071232,120]
[325181894,1714551084058,-500.0,0.00071232,120]
[325181895,1714551084066,-500.0,0.00071232,120]
[325181896,1714551084075,-1930.84,0.00071232,120]
[325181897,1714551084084,-500.0,0.00071232,120]
[325181898,1714551084094,-1194.01,0.00071232,120]
[325181899,1714551084104,-500.0,0.00071232,120]
[325181900,1714551084114,-500.0,0.00071232,60]
[325181901,1714551084123,-500.0,0.00071232,120]
[325181902,1714551084133,-500.0,0.00071232,120]
[325181903,1714551084142,-500.0,0.00071232,120]
[325181904,1714551084152,-500.0,0.00071232,120]
[325181905,1714551084162,-500.0,0.00071232,120]
[325181906,1714551084171,-1311.94,0.00071232,120]
[325181907,1714551084180,-843.84,0.00071232,120]
[325181908,1714551084191,-500.0,0.00071232,120]
[325181909,1714551084200,-500.0,0.00071232,120]
[325181910,1714551084315,-500.0,0.00071232,120]
[325181911,1714551084326,-500.0,0.00071232,120]
[325181912,1714551084336,-1833.01,0.00071232,120]
[325181913,1714551084346,-500.0,0.00071232,120]
[325181914,1714551084355,-500.0,0.00071232,120]
[325181915,1714551084365,-551.86443502,0.00071232,120]
[325181916,1714551084374,-8858.35,0.00071232,120]
[325181917,1714551084384,-3795.82,0.00071232,120]
[325181918,1714551084394,-500.0,0.00071232,120]
[325181919,1714551084404,-2186.1,0.00071232,120]
[325181920,1714551084413,-500.0,0.00071232,120]
[325181921,1714551084422,-500.0,0.00071232,120]
[325181922,1714551084432,-500.0,0.00071232,120]
[325181923,1714551084446,-500.0,0.00071232,120]
[325181924,1714551084456,-500.0,0.00071232,60]
[325181925,1714551084466,-13472.56,0.00071232,120]
[325181926,1714551084475,-500.0,0.00071232,120]
[325181927,1714551084485,-18297.18,0.00071232,120]
[325181928,1714551084494,-500.0,0.00071232,120]
[325181929,1714551084503,-500.0,0.00071232,120]
[325181930,1714551084513,-500.0,0.00071232,120]
[325181931,1714551084522,-833.3,0.00071232,21]
[325181932,1714551084531,-518.91,0.00071232,7]
[325181933,1714551084541,-496.53007339,0.00071232,120]
[325181934,1714551084550,-1015.92,0.00071232,120]
[325181935,1714551084560,-502.27448261,0.00071232,120]
[325181936,1714551084569,-1000.0,0.00071292,120]
[325181937,1714551084579,-1484.39,0.00071506,120]
[325181938,1714551084588,-151.0,0.00071507,120]
[325181939,1714551084597,-10000.0,0.00071678,120]
[325181940,1714551084607,-625.13533192,0.00071988,120]
[325181941,1714551084616,-151.0,0.0007211,120]
[325181942,1714551084625,-1000000.0,0.000722,120]
[325181943,1714551084635,-151.0,0.000722,120]
[325181944,1714551084644,-284.157297,0.000722,120]
[325181945,1714551084654,-284.157297,0.000722,120]
[325181946,1714551084663,-151.0,0.000722,120]
[325181947,1714551084673,-298.13302,0.000722,3]
[325181948,1714551084683,-701.315446,0.000722,120]
[325181949,1714551084695,-301.175704,0.000722,120]
[325181950,1714551084704,-701.315446,0.000722,120]
[325181951,1714551084714,-301.175706,0.000722,120]
[325181952,1714551084726,-274.403145,0.000722,120]
[325181953,1714551084736,-274.403151,0.000722,120]
[325181954,1714551084747,-470.15764,0.000722,120]
[325181955,1714551084756,-470.157631,0.000722,120]
[325181956,1714551084766,-151.0,0.000722,120]
[325181957,1714551084776,-334.842218,0.000722,120]
[325181958,1714551084785,-334.842223,0.000722,120]
[325181959,1714551084797,-1484.39,0.00072328,120]
[325181960,1714551084806,-1256.18,0.00072602,120]
[325181961,1714551084817,-10000.0,0.00072678,120]
[325181962,1714551084826,-151.0,0.00072712,120]
[325181963,1714551084835,-599.294732,0.0007279,120]
[325181964,1714551084845,-344.904806,0.0007279,120]
[325181965,1714551084856,-1000.0,0.000728,120]
[325181966,1714551084868,-625.13533192,0.00073,120]
[325181967,1714551084878,-161.364383,0.00073096,120]
[325181968,1714551084889,-1484.39,0.0007315,120]
[325181969,1714551084899,-151.0,0.00073315,120]
[325181970,1714551084908,-10000.0,0.00073678,120]
[325181971,1714551084917,-151.0,0.00073918,120]
[325181972,1714551084927,-503.63761946,0.00073972,120]
[325181973,1714551084936,-500.0,0.00073972,120]
[325181974,1714551084947,-680.26,0.00073972,120]
[325181975,1714551084956,-521.28541285,0.00073972,120]
[325181976,1714551084966,-500.0,0.00073972,120]
[325181977,1714551084974,-500.0,0.00073972,120]
[325181978,1714551084983,-500.0,0.00073972,120]
[325181979,1714551084992,-448.59,0.00073972,120]
[325181980,1714551085003,-503.97923721,0.00073972,120]
[325181981,1714551085013,-500.0,0.00073972,120]
[325181982,1714551085024,-500.0,0.00073972,120]
[325181983,1714551085033,-500.0,0.00073972,120]
[325181984,1714551085043,-500.0,0.00073972,120]
[325181985,1714551085053,-1484.39,0.00073972,120]
[325181986,1714551085062,-500.0,0.00073972,120]
[325181987,1714551085072,-500.0,0.00073972,120]
[325181988,1714551085082,-500.0,0.00073972,120]
[325181989,1714551085091,-416.57250205,0.00073972,120]
[325181990,1714551085101,-500.0,0.00073972,120]
[325181991,1714551085110,-500.0,0.00073972,120]
[325181992,1714551085119,-405.81284681,0.00073972,120]
[325181993,1714551085129,-888.73,0.00073972,2]
[325181994,1714551085138,-500.0,0.00073972,120]
[325181995,1714551085147,-396.5038095,0.00073972,120]
[325181996,1714551085157,-271.25118581,0.00073972,120]
[325181997,1714551085167,-500.0,0.00073972,120]
[325181998,1714551085176,-515.82,0.00073972,120]
[325181999,1714551085185,-500.0,0.00073972,120]
[325182000,1714551085199,-2055.92,0.00073972,120]
[325182001,1714551085208,-500.0,0.00073972,120]
[325182002,1714551085218,-500.0,0.00073972,120]
[325182003,1714551085227,-500.0,0.00073972,120]
[325182004,1714551085237,-500.0,0.00073972,120]
[325182005,1714551085246,-500.0,0.00073972,120]
[325182006,1714551085255,-1169.21,0.00073972,120]
[325182007,1714551085264,-500.0,0.00073972,120]
[325182008,1714551085273,-500.0,0.00073972,120]
[325182009,1714551085283,-500.0,0.00073972,120]
[325182010,1714551085292,-500.0,0.00073972,120]
[325182011,1714551085300,-1562.95,0.00073972,120]
[325182012,1714551085309,-211.01784739,0.00073972,120]
[325182013,1714551085319,-500.0,0.00073972,120]
[325182014,1714551085330,-1256.18,0.00073972,120]
[325182015,1714551085339,-479.1444402,0.00073972,120]
[325182016,1714551085348,-500.0,0.00073972,120]
[325182017,1714551085358,-500.0,0.00073972,120]
[325182018,1714551085367,-500.0,0.00073972,120]
[325182019,1714551085377,-500.0,0.00073972,120]
[325182020,1714551085386,-1164.34,0.00073972,120]
[325182021,1714551085395,-500.0,0.00073972,120]
[325182022,1714551085404,-500.0,0.00073972,120]
[325182023,1714551085413,-1166.09,0.00073972,120]
[325182024,1714551085423,-500.0,0.00073972,120]
[325182025,1714551085432,-500.0,0.00073972,2]
[325182026,1714551085442,-500.0,0.00073972,120]
[325182027,1714551085451,-500.0,0.00073972,120]
[325182028,1714551085460,-500.0,0.00073972,120]
[325182029,1714551085469,-639.5,0.00073972,120]
[325182030,1714551085478,-500.0,0.00073972,120]
[325182031,1714551085487,-500.0,0.00073972,120]
[325182032,1714551085497,-500.0,0.00073972,120]
[325182033,1714551085505,-500.0,0.00073972,120]
[325182034,1714551085514,-504.97869407,0.00073972,120]
[325182035,1714551085524,-651.81,0.00073972,120]
[325182036,1714551085534,-500.0,0.00073972,120]
[325182037,1714551085543,-500.0,0.00073972,120]
[325182038,1714551085552,-500.0,0.00073972,120]
[325182039,1714551085561,-500.0,0.00073972,120]
[325182040,1714551085570,-500.0,0.00073972,120]
[325182041,1714551085579,-500.0,0.00073972,120]
[325182042,1714551085588,-500.0,0.00073972,120]
[325182043,1714551085598,-1908.16,0.00073972,120]
[325182044,1714551085607,-500.0,0.00073972,120]
[325182045,1714551085616,-3348.19,0.00073972,2]
[325182046,1714551085625,-471.18795561,0.00073972,120]
[325182047,1714551085635,-500.0,0.00073972,120]
[325182048,1714551085644,-504.60886532,0.00073972,120]
[325182049,1714551085654,-500.0,0.00073972,120]
[325182050,1714551085663,-504.81,0.00073972,120]
[325182051,1714551085672,-525.82,0.00073972,120]
[325182052,1714551085681,-500.0,0.00073972,120]
[325182053,1714551085693,-501.03,0.00073972,120]
[325182054,1714551085703,-689.62,0.00073972,120]
[325182055,1714551085717,-500.0,0.00073972,120]
[325182056,1714551085727,-510.5,0.00073972,120]
[325182057,1714551085736,-348.35489215,0.00073972,120]
[325182058,1714551085746,-593.66,0.00073972,120]
[325182059,1714551085757,-500.0,0.00073972,120]
[325182060,1714551085767,-500.0,0.00073972,120]
[325182061,1714551085776,-500.0,0.00073972,120]
[325182062,1714551085786,-500.0,0.00073972,120]
[325182063,1714551085795,-500.0,0.00073972,120]
[325182064,1714551085807,-500.0,0.00073972,120]
[325182065,1714551085815,-500.0,0.00073972,120]
[325182066,1714551085824,-500.0,0.00073972,120]
[325182067,1714551085834,-500.0,0.00073972,120]
[325182068,1714551085843,-2088.42,0.00073972,120]
[325182069,1714551085854,-598.99,0.00073972,120]
[325182070,1714551085863,-500.0,0.00073972,120]
[325182071,1714551085873,-500.0,0.00073972,120]
[325182072,1714551085882,-692.55,0.00073972,120]
[325182073,1714551085892,-500.0,0.00073972,120]
[325182074,1714551085901,-500.0,0.00073972,120]
[325182075,1714551085910,-500.0,0.00073972,120]
[325182076,1714551085919,-1121.83,0.00073972,120]
[325182077,1714551085929,-1588.77,0.00073972,120]
[325182078,1714551085938,-557.85,0.00073972,120]
[325182079,1714551085950,-1507.86,0.00073972,120]
[325182080,1714551085959,-500.0,0.00073972,120]
[325182081,1714551085968,-500.0,0.00073972,120]
[325182082,1714551085977,-682.62,0.00073972,120]
[325182083,1714551085987,-1785.66,0.00073972,120]
[325182084,1714551085995,-500.0,0.00073972,120]
[325182085,1714551086005,-577.42,0.00073972,120]
[325182086,1714551086014,-500.0,0.00073972,120]
[325182087,1714551086023,-952.28,0.00073972,120]
[325182088,1714551086033,-511.62379661,0.00073972,120]
[325182089,1714551086042,-502.22103698,0.00073972,120]
[325182090,1714551086051,-500.0,0.00073972,120]
[325182091,1714551086060,-500.0,0.00073972,120]
[325182092,1714551086070,-500.0,0.00073972,120]
[325182093,1714551086080,-500.0,0.00073972,120]
[325182094,1714551086089,-6250.0,0.00073972,120]
[325182095,1714551086098,-500.0,0.00073972,120]
[325182096,1714551086108,-3743.38,0.00073972,120]
[325182097,1714551086117,-500.0,0.00073972,120]
[325182098,1714551086126,-500.0,0.00073972,120]
[325182099,1714551086135,-500.0,0.00073972,120]
[325182100,1714551086145,-500.0,0.00073972,120]
[325182101,1714551086154,-500.0,0.00073972,120]
[325182102,1714551086165,-500.0,0.00073972,120]
[325182103,1714551086176,-500.0,0.00073972,120]
[325182104,1714551086185,-158.83472454,0.00073972,120]
[325182105,1714551086197,-1044.56,0.00073972,120]
[325182106,1714551086206,-500.0,0.00073972,120]
[325182107,1714551086216,-1909.75,0.00073972,120]
[325182108,1714551086225,-500.0,0.00073972,120]
[325182109,1714551086234,-500.0,0.00073972,120]
[325182110,1714551086244,-499.0,0.00073972,120]
[325182111,1714551086253,-501.04,0.00073972,120]
[325182112,1714551086355,-500.0,0.00073972,120]
[325182113,1714551086365,-500.0,0.00073972,120]
[325182114,1714551086376,-8117.03,0.00073972,120]
[325182115,1714551086386,-753.05,0.00073972,120]
[325182116,1714551086396,-500.0,0.00073972,120]
[325182117,1714551086407,-500.0,0.00073972,120]
[325182118,1714551086419,-500.0,0.00073972,120]
[325182119,1714551086429,-3650.14,0.00073972,120]
[325182120,1714551086438,-1110.2,0.00073972,120]
[325182121,1714551086449,-500.0,0.00073972,120]
[325182122,1714551086458,-500.0,0.00073972,120]
[325182123,1714551086467,-1002.97,0.00073972,120]
[325182124,1714551086476,-500.0,0.00073972,120]
[325182125,1714551086486,-500.0,0.00073972,120]
[325182126,1714551086496,-4739.82,0.00073972,120]
[325182127,1714551086506,-500.0,0.00073972,120]
[325182128,1714551086517,-500.0,0.00073972,120]
[325182129,1714551086527,-500.0,0.00073972,120]
[325182130,1714551086536,-553.76,0.00073972,120]
[325182131,1714551086545,-500.0,0.00073972,120]
[325182132,1714551086555,-1930.84,0.00073972,120]
[325182133,1714551086565,-376.59300128,0.00073972,120]
[325182134,1714551086575,-1194.01,0.00073972,120]
[325182135,1714551086585,-500.0,0.00073972,120]
[325182136,1714551086595,-500.0,0.00073972,60]
[325182137,1714551086604,-500.0,0.00073972,120]
[325182138,1714551086615,-594.77025003,0.00073972,120]
[325182139,1714551086625,-500.0,0.00073972,120]
[325182140,1714551086640,-500.0,0.00073972,120]
[325182141,1714551086649,-500.0,0.00073972,120]
[325182142,1714551086659,-1311.94,0.00073972,120]
[325182143,1714551086668,-843.84,0.00073972,120]
[325182144,1714551086677,-500.0,0.00073972,120]
[325182145,1714551086687,-500.0,0.00073972,120]
[325182146,1714551086698,-601.89153731,0.00073972,120]
[325182147,1714551086708,-500.0,0.00073972,120]
[325182148,1714551086718,-1833.01,0.00073972,120]
[325182149,1714551086731,-500.0,0.00073972,120]
[325182150,1714551086739,-500.0,0.00073972,120]
[325182151,1714551086748,-8858.35,0.00073972,120]
[325182152,1714551086758,-3795.82,0.00073972,120]
[325182153,1714551086769,-2186.1,0.00073972,120]
[325182154,1714551086779,-500.0,0.00073972,120]
[325182155,1714551086787,-500.0,0.00073972,120]
[325182156,1714551086796,-500.0,0.00073972,120]
[325182157,1714551086806,-500.0,0.00073972,120]
[325182158,1714551086816,-500.0,0.00073972,120]
[325182159,1714551086825,-500.0,0.00073972,60]
[325182160,1714551086834,-13472.56,0.00073972,120]
[325182161,1714551086843,-500.0,0.00073972,120]
[325182162,1714551086853,-18297.18,0.00073972,120]
[325182163,1714551086863,-500.0,0.00073972,120]
[325182164,1714551086872,-500.0,0.00073972,120]
[325182165,1714551086882,-213.89646646,0.00073972,120]
[325182166,1714551086891,-833.3,0.00073972,21]
[325182167,1714551086901,-518.91,0.00073972,7]
[325182168,1714551086910,-1015.92,0.00073972,120]
[325182169,1714551086919,-162.628302,0.00074064,120]
[325182170,1714551086928,-1000.0,0.00074158,120]
[325182171,1714551086938,-911742.30558535,0.000744,30]
[325182182,1714551407111,771.73283885,9.999e-05,2]
[325182183,1714551412579,200.12196174,9.999e-05,2]
[325182184,1714551414458,291.72490529,9.999e-05,2]
[325182185,1714551419578,154.75239617,9.999e-05,2]
[325182186,1714551426989,446.72143296,9.999e-05,2]
[325182192,1714551458933,208.1490103,9.999e-05,2]
[325182193,1714551467197,472.95493354,9.999e-05,2]
[325182194,1714551473543,154.76784823,9.999e-05,2]
[325182195,1714551476970,362.38148801,9.999e-05,2]
[325182196,1714551477193,700.70596004,9.999e-05,2]
[325182197,1714551487757,409.34378337,9.999e-05,2]
[325182198,1714551504165,1622.14156305,9.999e-05,2]
[325182205,1714551733597,446.72143296,9.999e-05,2]
[325182206,1714551805738,700.70596004,9.999e-05,2]
[325182207,1714551875082,2176.13642072,0.0001,2]
[325182208,1714551995640,446.72143296,9.999e-05,2]
[325182209,1714552013157,-264.50884171,0.00011229,2]
[325182211,1714552075952,700.70596004,9.999e-05,2]
[325182288,1714552233169,-166.48960871,0.00011127,2]
[325182289,1714552233179,-208.51039129,0.00011219,2]
[325182290,1714552233190,-1420.28002462,0.00011219,2]
[325182291,1714552233202,-962.00734617,0.00011219,2]
[325182292,1714552233211,-5774.56469768,0.0001122,2]
[325182295,1714552233222,-9177.705763,0.0001122,2]
[325182385,1714552238695,-724.22483103,0.0001122,2]
[325182387,1714552238705,-2130.77516897,0.00011221,2]
[325182389,1714552238716,-11198.81920723,0.00011221,2]
[325182391,1714552238727,-45897.14518709,0.00011221,2]
[325182393,1714552238736,-7875.36127702,0.00011221,2]
[325182395,1714552238745,-16315.86068289,0.00011222,2]
[325182398,1714552238757,-1809.6132145,0.00011222,2]
[325182400,1714552238768,-370.67189232,0.00011222,2]
[325182402,1714552238779,-1704.45783931,0.00011222,2]
[325182404,1714552238789,-575.94305305,0.00011225,2]
[325182406,1714552238799,-446.72143296,0.00011226,2]
[325182408,1714552238808,-198.208804,0.00011233,2]
[325182410,1714552238817,-250.0,0.00011636,2]
[325182412,1714552238829,-166.48960869,0.00012161,2]
[325182414,1714552238838,-2486.81812686,0.00012627,2]
[325182416,1714552238847,-1328.99694809,0.00012642,2]
[325182419,1714552238859,-23571.00305191,0.00012642,2]
[325182421,1714552238868,-166.48960869,0.00013194,2]
[325182423,1714552238877,-472.18925542,0.00013643,2]
[325182425,1714552238886,-250.564019,0.00013643,2]
[325182427,1714552238895,-362.43253197,0.00013643,2]
[325182429,1714552238905,-412.41798264,0.00013643,2]
[325182431,1714552238914,-208.0229212,0.00013644,2]
[325182433,1714552238923,-281.79629079,0.00013648,2]
[325182435,1714552238932,-556.00692049,0.00013649,2]
[325182437,1714552238941,-287.36162003,0.00013649,2]
[325182439,1714552238951,-154.84515485,0.00013657,2]
[325182441,1714552238960,-3000.0,0.00013699,2]
[325182443,1714552238969,-517.958247,0.00013699,2]
[325182445,1714552238979,-730.81737118,0.000138,2]
[325182447,1714552238988,-928.84070559,0.00014,2]
[325182449,1714552238997,-166.48960869,0.00014228,2]
[325182451,1714552239006,-312.97578303,0.00015,2]
[325182453,1714552239016,-939.61631274,0.00015,2]
[325182455,1714552239025,-2101.71813346,0.00015,2]
[325182457,1714552239035,-2392.92958612,0.00015,2]
[325182459,1714552239044,-2781.69529347,0.00015,2]
[325182461,1714552239055,-464.34991014,0.00015008,2]
[325182462,1714552239064,-166.48960869,0.00015262,2]
[325182465,1714552239074,-514.39558646,0.00016,2]
[325182467,1714552239087,-9378.45996285,0.00016,2]
[325182469,1714552239096,-166.48960869,0.00016296,2]
[325182471,1714552239106,-272.87483722,0.000165,2]
[325182473,1714552239115,-166.48960869,0.00017329,2]
[325182475,1714552239124,-166.48960869,0.00018363,2]
[325182477,1714552239133,-189.36782433,0.00018459,2]
[325182478,1714552239143,-282.08586481,0.00018463,2]
[325182480,1714552239152,-154.8760713,0.00018463,2]
[325182482,1714552239162,-467.58467062,0.00018463,2]
[325182485,1714552239173,-159.27493445,0.00018463,2]
[325182487,1714552239182,-155.32473177,0.00018463,2]
[325182489,1714552239192,-155.2538722,0.00018463,2]
[325182490,1714552239201,-154.8760713,0.00018463,2]
[325182493,1714552239210,-185.54724105,0.00018463,2]
[325182495,1714552239220,-156.01396348,0.00018463,2]
[325182496,1714552239232,-260.3242713,0.00018463,2]
[325182498,1714552239242,-155.58089007,0.00018463,2]
[325182500,1714552239253,-170.99457889,0.00018464,2]
[325182502,1714552239263,-1893.77904259,0.00018465,2]
[325182504,1714552239272,-1156.2918161,0.00018466,2]
[325182506,1714552239282,-603.94471779,0.000185,2]
[325182508,1714552239292,-3784.26507766,0.000189,2]
[325182510,1714552239301,-238.58299486,0.00019,2]